bitfinex-derivatives/quotes_BTCF0:USTF0_20241006
["timestamp","ask_amount","ask_price","bid_price","bid_amount"]
[1728208781879,0.0024,62105.0,62104.0,0.31081608]
[1728208782770,0.0028,62105.0,62104.0,0.31081608]
[1728208783676,0.0028,62105.0,62104.0,0.065805]
[1728208783875,0.16388998,62105.0,62104.0,0.065805]
[1728208784082,0.12363848,62105.0,62104.0,0.065805]
[1728208784981,0.14774156,62105.0,62104.0,0.065805]
[1728208785376,0.26858004,62105.0,62104.0,0.065805]
[1728208785578,0.23658684,62105.0,62104.0,0.065805]
[1728208785875,0.19716019,62105.0,62104.0,0.065805]
[1728208786070,0.26858939,62105.0,62104.0,0.065805]
[1728208790279,0.0742292,62105.0,62104.0,0.065805]
[1728208790677,0.0028,62105.0,62104.0,0.4230388]
[1728208791784,0.0028,62105.0,62104.0,0.57761117]
[1728208791978,0.0028,62105.0,62104.0,0.57761097]
[1728208792885,0.20934356,62107.0,62104.0,0.46519802]
[1728208793198,0.20934356,62107.0,62106.0,0.11291619]
[1728208793373,0.064402,62107.0,62106.0,0.35773704]
[1728208793573,0.064402,62107.0,62106.0,0.51231242]
[1728208793990,0.064802,62107.0,62106.0,0.51231242]
[1728208794170,0.065802,62107.0,62106.0,0.51231242]
[1728208794576,0.065802,62107.0,62106.0,0.51331242]
[1728208794577,0.066802,62107.0,62106.0,0.51331242]
[1728208795880,0.066802,62107.0,62106.0,0.40079623]
[1728208796782,0.0024,62107.0,62106.0,0.40079623]
[1728208797486,0.066802,62107.0,62106.0,0.40079623]
[1728208798679,0.066802,62107.0,62106.0,0.24622085]
[1728208801382,0.067202,62107.0,62106.0,0.24622085]
[1728208801883,0.0028,62107.0,62106.0,0.31062285]
[1728208803487,0.0028,62107.0,62106.0,1.148842]
[1728208803687,0.0028,62107.0,62106.0,1.54549942]
[1728208804184,0.0028,62107.0,62106.0,1.67397183]
[1728208804986,0.0028,62107.0,62106.0,1.54549942]
[1728208805292,0.0028,62107.0,62106.0,1.70345909]
[1728208805679,0.0055,62118.0,62114.0,0.064394]
[1728208805680,0.0012,62118.0,62114.0,0.064394]
[1728208805988,0.0012,62118.0,62106.0,0.55601709]
[1728208805989,0.12212593,62116.0,62115.0,0.064393]
[1728208806780,0.12252593,62116.0,62115.0,0.064393]
[1728208807287,0.12352593,62116.0,62115.0,0.066393]
[1728208808186,0.15542593,62116.0,62115.0,0.066393]
[1728208808382,0.15542593,62116.0,62115.0,0.067393]
[1728208808383,0.15616965,62116.0,62115.0,0.067393]
[1728208808874,0.3330549,62116.0,62115.0,0.067393]
[1728208809282,0.15616965,62116.0,62115.0,0.067393]
[1728208809785,0.3330549,62116.0,62115.0,0.067393]
[1728208810287,0.15616965,62116.0,62115.0,0.067393]
[1728208813189,0.15612953,62116.0,62115.0,0.067393]
[1728208813892,0.0343,62116.0,62115.0,0.17798805]
[1728208814277,0.0347,62116.0,62115.0,0.17798805]
[1728208815497,0.0347,62116.0,62115.0,0.3098195]
[1728208816292,0.099092,62116.0,62115.0,0.2454265]
[1728208817097,0.05076171,62116.0,62115.0,0.2454265]
[1728208817979,0.05116171,62116.0,62115.0,0.2454265]
[1728208820799,0.17338847,62116.0,62115.0,0.003]
[1728208820989,0.17338847,62116.0,62115.0,0.0034]
[1728208825596,0.17378847,62116.0,62115.0,0.0034]
[1728208827504,0.17383617,62116.0,62115.0,0.0034]
[1728208828902,0.05156171,62116.0,62115.0,0.24527037]
[1728208829294,0.08086512,62116.0,62115.0,0.24527037]
[1728208829896,0.0008,62116.0,62115.0,0.30966337]
[1728208834602,0.0008,62116.0,62115.0,0.46239447]
[1728208834917,0.0008,62116.0,62115.0,0.82319447]
[1728208835107,0.0004,62117.0,62115.0,0.75880147]
[1728208835302,0.0004,62117.0,62116.0,0.45899347]
[1728208835604,0.064384,62124.0,62116.0,0.39500147]
[1728208835803,0.12274676,62123.0,62121.0,0.064387]
[1728208836011,0.12274676,62122.0,62118.0,0.11243094]
[1728208836313,0.17703268,62119.0,62118.0,0.17682094]
[1728208836508,0.21095705,62119.0,62118.0,0.17682094]
[1728208836713,0.30017944,62119.0,62118.0,0.17722094]
[1728208837008,0.3001114,62119.0,62118.0,0.17722094]
[1728208837205,0.12307872,62119.0,62118.0,0.17722094]
[1728208837507,0.12307872,62119.0,62118.0,0.53802094]
[1728208837710,0.3001114,62119.0,62118.0,0.53802094]
[1728208838212,0.3001114,62119.0,62118.0,0.53902094]
[1728208838602,0.12307872,62119.0,62118.0,0.53902094]
[1728208838804,0.12307872,62119.0,62118.0,0.54102094]
[1728208839014,0.12307872,62119.0,62118.0,0.54002094]
[1728208839204,0.12307872,62119.0,62118.0,0.54302094]
[1728208841618,0.12234291,62119.0,62118.0,0.54302094]
[1728208843819,0.0004,62119.0,62118.0,0.54302094]
[1728208844216,0.0004,62119.0,62118.0,0.18222094]
[1728208844416,0.0004,62119.0,62118.0,0.06979]
[1728208845013,0.0004,62119.0,62118.0,0.2605815]
[1728208845519,0.0004,62119.0,62118.0,0.15009764]
[1728208846709,0.0004,62119.0,62118.0,0.06979]
[1728208847113,0.0004,62119.0,62118.0,0.15009764]
[1728208847518,0.0004,62119.0,62118.0,0.06979]
[1728208850816,0.0004,62119.0,62118.0,0.11795057]
[1728208851022,0.0004,62119.0,62118.0,0.11835057]
[1728208851923,0.0004,62119.0,62118.0,0.07019]
[1728208852125,0.0004,62119.0,62118.0,0.11835218]
[1728208852623,0.0004,62119.0,62118.0,0.07019]
[1728208853723,0.0004,62119.0,62118.0,0.11835451]
[1728208853914,0.0004,62119.0,62118.0,0.07019]
[1728208855821,0.0004,62119.0,62118.0,0.13440409]
[1728208856017,0.0004,62119.0,62118.0,0.07019]
[1728208858114,0.0004,62119.0,62118.0,0.13440409]
[1728208858918,0.07306675,62119.0,62118.0,0.0058]
[1728208859120,0.12247404,62119.0,62118.0,0.0058]
[1728208859520,0.12247404,62119.0,62118.0,0.07019]
[1728208864427,0.12196734,62119.0,62118.0,0.07019]
[1728208865926,0.12196734,62119.0,62118.0,0.18121862]
[1728208865927,0.0004,62119.0,62118.0,0.18121862]
[1728208871031,0.064795,62119.0,62118.0,0.18121862]
[1728208871330,0.064795,62119.0,62118.0,0.15054197]
[1728208872232,0.064795,62119.0,62118.0,0.07019]
[1728208873939,0.11420712,62119.0,62118.0,0.07019]
[1728208874128,0.14674486,62119.0,62118.0,0.07019]
[1728208874329,0.18616632,62119.0,62118.0,0.07019]
[1728208874528,0.18616632,62119.0,62118.0,0.0058]
[1728208874830,0.18616632,62119.0,62116.0,0.0004]
[1728208874831,0.064397,62117.0,62116.0,0.0004]
[1728208875034,0.18616832,62117.0,62116.0,0.0004]
[1728208875236,0.0644,62114.0,62113.0,0.0038]
[1728208875436,0.064404,62111.0,62110.0,0.0038]
[1728208875736,0.14675386,62111.0,62107.0,0.0038]
[1728208875935,0.0004,62108.0,62106.0,0.064808]
[1728208876235,0.12177132,62107.0,62106.0,0.064808]
[1728208877425,0.0014,62107.0,62106.0,0.065808]
[1728208877631,0.12277132,62107.0,62106.0,0.065808]
[1728208877937,0.12377132,62107.0,62106.0,0.065808]
[1728208879141,0.04182146,62107.0,62106.0,0.065808]
[1728208879332,0.03448904,62107.0,62106.0,0.0014]
[1728208879538,0.12333677,62107.0,62106.0,0.0014]
[1728208880133,0.28411362,62107.0,62106.0,0.0014]
[1728208880435,0.18774477,62107.0,62106.0,0.0014]
[1728208880936,0.18774477,62107.0,62106.0,0.11286646]
[1728208880937,0.01041221,62107.0,62106.0,0.11286646]
[1728208881141,0.0004,62108.0,62106.0,0.11286646]
[1728208881443,0.064807,62108.0,62107.0,0.11186646]
[1728208882035,0.425607,62108.0,62107.0,0.11186646]
[1728208882229,0.425607,62108.0,62107.0,0.19207715]
[1728208882439,0.425607,62108.0,62107.0,0.0004]
[1728208883131,0.427607,62108.0,62107.0,0.0024]
[1728208883339,1.510647,62108.0,62107.0,0.0024]
[1728208883938,1.511047,62108.0,62107.0,0.0034]
[1728208884231,0.428007,62108.0,62107.0,0.0034]
[1728208886438,0.428007,62108.0,62107.0,0.06751702]
[1728208886944,0.428007,62108.0,62107.0,0.06751812]
[1728208887836,0.428407,62108.0,62107.0,0.06751812]
[1728208888147,0.428407,62108.0,62107.0,0.06751413]
[1728208889033,0.428407,62108.0,62107.0,0.0034]
[1728208889238,0.067607,62108.0,62107.0,0.0034]
[1728208889447,0.428407,62108.0,62107.0,0.0034]
[1728208896044,0.48524264,62108.0,62107.0,0.0034]
[1728208896244,0.48524264,62108.0,62104.0,0.0116]
[1728208896245,0.66183086,62108.0,62104.0,0.0116]
[1728208896548,0.0004,62105.0,62104.0,0.076011]
[1728208896750,0.16095954,62105.0,62104.0,0.064811]
[1728208896951,0.28220218,62105.0,62104.0,0.09402322]
[1728208897150,0.12164264,62105.0,62104.0,0.09402322]
[1728208897558,0.12164264,62105.0,62104.0,0.09502322]
[1728208897856,0.12167621,62105.0,62104.0,0.45582322]
[1728208898153,0.07325595,62105.0,62104.0,0.45782322]
[1728208898855,0.07145595,62105.0,62104.0,0.39341222]
[1728208899048,0.0022,62108.0,62107.0,0.064408]
[1728208899354,0.0012,62108.0,62107.0,0.064408]
[1728208899557,0.0012,62108.0,62107.0,0.064808]
[1728208900050,0.0016,62108.0,62107.0,0.064808]
[1728208900353,0.14814369,62108.0,62107.0,0.064808]
[1728208902559,0.14821848,62108.0,62107.0,0.064808]
[1728208903450,0.1482193,62108.0,62107.0,0.064808]
[1728208903953,0.05301315,62108.0,62107.0,0.064808]
[1728208904142,0.16095954,62111.0,62110.0,0.064405]
[1728208904344,0.16095954,62111.0,62110.0,0.17700424]
[1728208905148,0.0004,62111.0,62110.0,0.17700424]
[1728208905350,0.0018,62111.0,62110.0,0.17700424]
[1728208906162,0.0028,62111.0,62110.0,0.17900424]
[1728208906546,0.0028,62111.0,62110.0,0.27524505]
[1728208906749,0.0028,62111.0,62110.0,0.17900424]
[1728208907451,0.0028,62111.0,62110.0,0.27524505]
[1728208907651,0.0028,62111.0,62110.0,0.17900424]
[1728208910951,0.064801,62114.0,62110.0,0.17900424]
[1728208911149,0.1446198,62112.0,62110.0,0.066805]
[1728208911376,0.11993506,62111.0,62110.0,0.066805]
[1728208911864,0.26455486,62111.0,62110.0,0.066805]
[1728208912065,0.26495687,62111.0,62110.0,0.066805]
[1728208912360,0.26495687,62111.0,62110.0,0.067805]
[1728208912864,0.26495687,62111.0,62110.0,0.068805]
[1728208913064,0.26495687,62111.0,62110.0,0.067805]
[1728208913256,0.26495687,62111.0,62110.0,0.068805]
[1728208913257,0.26595687,62111.0,62110.0,0.068805]
[1728208913563,0.12233707,62111.0,62110.0,0.068805]
[1728208913955,0.26695687,62111.0,62110.0,0.068805]
[1728208916762,0.26695687,62111.0,62110.0,0.0044]
[1728208916974,0.18674122,62111.0,62110.0,0.0044]
[1728208917771,0.34742989,62111.0,62110.0,0.0044]
[1728208919065,0.066804,62111.0,62110.0,0.19699502]
[1728208921174,0.066804,62111.0,62110.0,0.19703884]
[1728208921575,0.066804,62111.0,62110.0,0.11684705]
[1728208921963,0.427604,62111.0,62110.0,0.11684705]
[1728208923764,0.3632,62111.0,62110.0,0.11684705]
[1728208923967,0.3632,62111.0,62110.0,0.18125205]
[1728208924469,0.3632,62111.0,62110.0,0.27749286]
[1728208925264,0.3632,62111.0,62110.0,0.18125205]
[1728208925460,0.3632,62111.0,62110.0,0.31529524]
[1728208925862,0.0024,62111.0,62110.0,0.31529524]
[1728208926268,0.12233956,62111.0,62110.0,0.068805]
[1728208928077,0.14726315,62111.0,62110.0,0.068805]
[1728208928283,0.28329861,62111.0,62110.0,0.068805]
[1728208928465,0.12233956,62111.0,62110.0,0.068805]
[1728208928666,0.14725636,62111.0,62110.0,0.068805]
[1728208928876,0.26719592,62111.0,62110.0,0.068805]
[1728208930183,0.26719592,62111.0,62110.0,0.429605]
[1728208934175,0.0024,62111.0,62110.0,0.54191497]
[1728208934583,0.0024,62111.0,62110.0,0.63827428]
[1728208934776,0.0024,62111.0,62110.0,0.63831066]
[1728208938081,0.0024,62111.0,62110.0,0.27751066]
[1728208939282,0.0024,62111.0,62110.0,0.18115135]
[1728208939483,0.0024,62111.0,62110.0,0.1811459]
[1728208949183,0.03349715,62111.0,62110.0,0.068805]
[1728208949476,0.21008537,62111.0,62110.0,0.068805]
[1728208949672,0.29892249,62111.0,62110.0,0.068805]
[1728208950483,0.12233427,62111.0,62110.0,0.068805]
[1728208956293,0.0004,62114.0,62111.0,0.064403]
[1728208956594,0.0004,62114.0,62113.0,0.0004]
[1728208956787,0.0004,62114.0,62113.0,0.24671114]
[1728208958795,0.0014,62114.0,62113.0,0.24671114]
[1728208959087,0.0024,62114.0,62113.0,0.24671114]
[1728208959593,0.0014,62114.0,62113.0,0.24971114]
[1728208959793,0.0014,62114.0,62113.0,0.25471114]
[1728208959794,0.0024,62114.0,62113.0,0.25471114]
[1728208961994,0.0024,62114.0,62113.0,0.25478579]
[1728208964290,0.07297499,62114.0,62111.0,0.064403]
[1728208964490,0.0004,62112.0,62111.0,0.064403]
[1728208964685,0.12038908,62112.0,62111.0,0.064403]
[1728208964885,0.12038908,62112.0,62111.0,0.09388672]
[1728208965696,0.12038908,62112.0,62111.0,0.09688672]
[1728208965997,0.12138908,62112.0,62111.0,0.09688672]
[1728208966197,0.12138908,62112.0,62111.0,0.06388672]
[1728208966388,0.12138908,62112.0,62111.0,0.06688672]
[1728208966389,0.12238908,62112.0,62111.0,0.06688672]
[1728208971399,0.0024,62112.0,62111.0,0.17967999]
[1728208972295,0.3632,62112.0,62111.0,0.17967999]
[1728208973703,0.3632,62112.0,62111.0,0.17970315]
[1728208976397,0.0024,62112.0,62111.0,0.17970315]
[1728208976594,0.3632,62112.0,62111.0,0.17970315]
[1728208977516,0.0024,62112.0,62111.0,0.17970315]
[1728208977804,0.3632,62112.0,62111.0,0.17970315]
[1728208978702,0.0024,62112.0,62111.0,0.17970315]
[1728208979005,0.3632,62112.0,62111.0,0.17970315]
[1728208979405,0.3632,62112.0,62111.0,0.31415571]
[1728208980002,0.3632,62112.0,62111.0,0.27975271]
[1728208980603,0.427603,62112.0,62111.0,0.27975271]
[1728208980808,0.066803,62112.0,62111.0,0.27975271]
[1728208981207,0.427603,62112.0,62111.0,0.27975271]
[1728208981600,0.427603,62112.0,62111.0,0.25026899]
[1728208982008,0.427603,62112.0,62111.0,0.25024769]
[1728208984804,0.066803,62112.0,62111.0,0.25024769]
[1728208985015,0.427603,62112.0,62111.0,0.25024769]
[1728208985713,0.066803,62112.0,62111.0,0.25024769]
[1728208986106,0.427603,62112.0,62111.0,0.25024769]
[1728208986415,0.427603,62112.0,62111.0,0.003]
[1728208986416,0.54754368,62112.0,62111.0,0.003]
[1728208986806,0.18674369,62112.0,62111.0,0.003]
[1728208987315,0.54754369,62112.0,62111.0,0.003]
[1728208987519,0.18674369,62112.0,62111.0,0.003]
[1728208987812,0.54754369,62112.0,62111.0,0.003]
[1728208989316,0.12234069,62112.0,62111.0,0.003]
[1728208989504,0.12234069,62112.0,62111.0,0.098804]
[1728208989708,0.14734171,62112.0,62111.0,0.098804]
[1728208989907,0.2672824,62112.0,62111.0,0.098804]
[1728208991821,0.12234069,62112.0,62111.0,0.098804]
[1728208993319,0.31526674,62114.0,62111.0,0.50195682]
[1728208993522,0.25887793,62114.0,62112.0,0.40315282]
[1728208993822,0.25887793,62114.0,62113.0,0.40355282]
[1728208994421,0.16109291,62115.0,62113.0,0.51608607]
[1728208994607,0.16109291,62115.0,62113.0,0.11293325]
[1728208994608,0.002,62114.0,62113.0,0.11293325]
[1728208994919,0.002,62114.0,62113.0,0.51337861]
[1728208995926,0.002,62114.0,62113.0,0.51339405]
[1728208996127,0.002,62114.0,62113.0,0.51439405]
[1728208996423,0.0664,62114.0,62113.0,0.51439405]
[1728209001421,0.09916631,62114.0,62113.0,0.0014]
[1728209001936,0.18800645,62114.0,62113.0,0.0014]
[1728209005424,0.27635174,62114.0,62113.0,0.0014]
[1728209005724,0.36519188,62114.0,62113.0,0.0014]
[1728209006316,0.36518503,62114.0,62113.0,0.0014]
[1728209008424,0.24358543,62114.0,62113.0,0.24489671]
[1728209010328,0.24358543,62114.0,62113.0,0.51116992]
[1728209016336,0.36517258,62114.0,62113.0,0.11393325]
[1728209016637,0.42291437,62114.0,62113.0,0.0014]
[1728209017139,0.24572894,62114.0,62113.0,0.0014]
[1728209017338,0.18798715,62114.0,62113.0,0.0014]
[1728209020533,0.1385715,62114.0,62113.0,0.0014]
[1728209022231,0.13856626,62114.0,62113.0,0.0014]
[1728209023442,0.0664,62114.0,62113.0,0.24497593]
[1728209028334,0.0664,62114.0,62113.0,0.11252176]
[1728209028539,0.4272,62114.0,62113.0,0.11252176]
[1728209029137,0.0664,62114.0,62113.0,0.11252176]
[1728209029439,0.4272,62114.0,62113.0,0.11252176]
[1728209030032,0.0664,62114.0,62113.0,0.11252176]
[1728209030240,0.3608,62114.0,62113.0,0.24508017]
[1728209030437,0.4252,62114.0,62113.0,0.24508017]
[1728209030833,0.4252,62114.0,62113.0,0.24427532]
[1728209031035,0.0644,62114.0,62113.0,0.24427532]
[1728209031344,0.4252,62114.0,62113.0,0.24427532]
[1728209031740,0.0644,62114.0,62113.0,0.24427532]
[1728209032051,0.4252,62114.0,62113.0,0.24427532]
[1728209038054,0.0644,62114.0,62113.0,0.24427532]
[1728209038440,0.18632233,62114.0,62113.0,0.0014]
[1728209038643,0.54712233,62114.0,62113.0,0.0014]
[1728209039240,0.69206582,62114.0,62113.0,0.0014]
[1728209040146,0.33126582,62114.0,62113.0,0.0014]
[1728209040452,0.69206582,62114.0,62113.0,0.0014]
[1728209040653,0.69206482,62114.0,62113.0,0.0014]
[1728209041556,0.33126482,62114.0,62113.0,0.0014]
[1728209041751,0.69206482,62114.0,62113.0,0.0014]
[1728209042256,0.33126482,62114.0,62113.0,0.0014]
[1728209042444,0.69206482,62114.0,62113.0,0.0014]
[1728209042646,0.33126482,62114.0,62113.0,0.0014]
[1728209042949,0.69206482,62114.0,62113.0,0.0014]
[1728209043257,0.33126482,62114.0,62113.0,0.0014]
[1728209043548,0.69206482,62114.0,62113.0,0.0014]
[1728209043754,0.54712133,62114.0,62113.0,0.0014]
[1728209045156,0.54712133,62114.0,62107.0,0.0042]
[1728209045157,0.064404,62111.0,62107.0,0.0042]
[1728209045344,0.064807,62108.0,62107.0,0.0004]
[1728209045658,0.13731017,62108.0,62107.0,0.0004]
[1728209045858,0.18673338,62108.0,62107.0,0.0004]
[1728209046253,0.18673338,62108.0,62107.0,0.0014]
[1728209046450,0.064807,62108.0,62107.0,0.24487743]
[1728209046848,0.065807,62108.0,62107.0,0.24487743]
[1728209047053,0.065807,62108.0,62107.0,0.24687743]
[1728209047850,0.066807,62108.0,62107.0,0.24687743]
[1728209048858,0.427607,62108.0,62107.0,0.24687743]
[1728209051859,0.066807,62108.0,62107.0,0.24687743]
[1728209052065,0.427607,62108.0,62107.0,0.24687743]
[1728209054451,0.066807,62108.0,62107.0,0.24687743]
[1728209054656,0.427607,62108.0,62107.0,0.24687743]
[1728209055868,0.066807,62108.0,62107.0,0.24687743]
[1728209056061,0.427607,62108.0,62107.0,0.24687743]
[1728209058866,0.066807,62108.0,62107.0,0.24687743]
[1728209059167,0.427607,62108.0,62107.0,0.24687743]
[1728209060266,0.427607,62108.0,62107.0,0.0034]
[1728209066777,0.066807,62108.0,62107.0,0.0034]
[1728209066974,0.427607,62108.0,62107.0,0.0034]
[1728209069174,0.066807,62108.0,62107.0,0.0034]
[1728209069376,0.427607,62108.0,62107.0,0.0034]
[1728209074088,0.427607,62108.0,62107.0,0.03244085]
[1728209105208,0.427607,62108.0,62107.0,0.0034]
[1728209108321,0.066807,62108.0,62107.0,0.0034]
[1728209108618,0.427607,62108.0,62107.0,0.0034]
[1728209110122,0.066807,62108.0,62107.0,0.0034]
[1728209110425,0.427607,62108.0,62107.0,0.0034]
[1728209112122,0.066807,62108.0,62107.0,0.0034]
[1728209112323,0.427607,62108.0,62107.0,0.0034]
[1728209112515,0.066807,62108.0,62107.0,0.0034]
[1728209112716,0.427607,62108.0,62107.0,0.0034]
[1728209113428,0.066807,62108.0,62107.0,0.0034]
[1728209113721,0.427607,62108.0,62107.0,0.0034]
[1728209117928,0.066807,62108.0,62107.0,0.0034]
[1728209118129,0.427607,62108.0,62107.0,0.0034]
[1728209123841,0.066807,62108.0,62107.0,0.0034]
[1728209124036,0.427607,62108.0,62107.0,0.0034]
[1728209126635,0.066807,62108.0,62107.0,0.0034]
[1728209126932,0.427607,62108.0,62107.0,0.0034]
[1728209130633,0.066807,62108.0,62107.0,0.0034]
[1728209131242,0.427607,62108.0,62107.0,0.0034]
[1728209132332,0.066807,62108.0,62107.0,0.0034]
[1728209132533,0.427607,62108.0,62107.0,0.0034]
[1728209133835,0.066807,62108.0,62107.0,0.0034]
[1728209134037,0.427607,62108.0,62107.0,0.0034]
[1728209134937,0.066807,62108.0,62107.0,0.0034]
[1728209135139,0.427607,62108.0,62107.0,0.0034]
[1728209137239,0.066807,62108.0,62107.0,0.0034]
[1728209137930,0.427607,62108.0,62107.0,0.0034]
[1728209138832,0.066807,62108.0,62107.0,0.0034]
[1728209139033,0.427607,62108.0,62107.0,0.0034]
[1728209139437,0.066807,62108.0,62107.0,0.0034]
[1728209140239,0.427607,62108.0,62107.0,0.0034]
[1728209140631,0.066807,62108.0,62107.0,0.0034]
[1728209140837,0.427607,62108.0,62107.0,0.0034]
[1728209142943,0.427607,62108.0,62104.0,0.0004]
[1728209143147,0.064413,62102.0,62095.0,0.42952]
[1728209143336,0.0004,62099.0,62098.0,0.061568]
[1728209145540,0.0014,62099.0,62098.0,0.061568]
[1728209146355,0.0024,62099.0,62098.0,0.061568]
[1728209150346,0.0332,62099.0,62098.0,0.061568]
[1728209151642,0.0336,62099.0,62098.0,0.061568]
[1728209157748,0.034,62099.0,62098.0,0.061568]
[1728209160051,0.03660252,62104.0,62098.0,0.061568]
[1728209160052,0.35447361,62101.0,62098.0,0.45934442]
[1728209160245,0.35447361,62101.0,62100.0,0.0004]
[1728209160453,0.35447361,62101.0,62100.0,0.39817642]
[1728209160652,0.35447361,62101.0,62100.0,0.51076311]
[1728209161362,0.425614,62101.0,62100.0,0.51076311]
[1728209161652,0.426614,62101.0,62100.0,0.51076311]
[1728209161851,0.426614,62101.0,62100.0,0.24423073]
[1728209162255,0.427614,62101.0,62100.0,0.24423073]
[1728209162559,0.427614,62101.0,62100.0,0.24523073]
[1728209162748,0.065814,62101.0,62100.0,0.24523073]
[1728209162951,0.065814,62101.0,62100.0,0.24623073]
[1728209162952,0.427614,62101.0,62100.0,0.24623073]
[1728209165251,0.427614,62101.0,62100.0,0.19633073]
[1728209165451,0.064418,62097.0,62096.0,0.09650198]
[1728209165656,0.06442,62096.0,62094.0,0.00241551]
[1728209165965,0.064419,62096.0,62095.0,0.13083728]
[1728209166461,0.064819,62096.0,62095.0,0.13083728]
[1728209166652,0.064819,62096.0,62094.0,0.00241551]
[1728209166857,0.03418882,62095.0,62094.0,0.00241551]
[1728209167057,0.03458882,62095.0,62094.0,0.00341551]
[1728209167453,0.45980882,62095.0,62094.0,0.00341551]
[1728209167653,0.45980882,62095.0,62087.0,0.0038]
[1728209167654,0.064427,62088.0,62087.0,0.0038]
[1728209167859,0.064427,62088.0,62082.0,0.0294958]
[1728209167860,0.064429,62087.0,62082.0,0.0294958]
[1728209168054,0.03442982,62088.0,62081.0,0.064434]
[1728209168055,0.0004,62083.0,62081.0,0.064434]
[1728209168253,0.03439779,62082.0,62081.0,0.064434]
[1728209169755,0.03539779,62082.0,62081.0,0.064434]
[1728209170056,0.03639779,62082.0,62081.0,0.064434]
[1728209172961,0.0024,62082.0,62081.0,0.064434]
[1728209173649,0.0024,62082.0,62081.0,0.19567004]
[1728209175665,0.066834,62082.0,62081.0,0.13123604]
[1728209177580,0.066834,62082.0,62079.0,0.0322]
[1728209177776,0.064435,62081.0,62080.0,0.13116857]
[1728209178084,0.064443,62073.0,62072.0,0.11678669]
[1728209178283,0.0004,62073.0,62072.0,0.13173845]
[1728209178474,0.0004,62073.0,62072.0,0.0004]
[1728209178974,0.0004,62073.0,62072.0,0.064844]
[1728209179672,0.0024,62073.0,62072.0,0.064844]
[1728209180377,0.0024,62073.0,62072.0,0.17410038]
[1728209181776,0.0024,62073.0,62072.0,0.064844]
[1728209186691,0.0028,62073.0,62072.0,0.064844]
[1728209187690,0.0028,62073.0,62072.0,0.0004]
[1728209188693,0.067243,62073.0,62072.0,0.0004]
[1728209189793,0.37434001,62076.0,62072.0,0.0004]
[1728209189991,0.3721,62076.0,62075.0,0.0004]
[1728209190196,0.3608,62076.0,62075.0,0.0004]
[1728209190892,0.3622,62076.0,62075.0,0.0004]
[1728209191499,0.42664,62076.0,62075.0,0.0004]
[1728209192791,0.42764,62076.0,62075.0,0.0004]
[1728209192992,0.3632,62076.0,62075.0,0.064841]
[1728209193190,0.3632,62076.0,62075.0,0.12902633]
[1728209193495,0.3622,62076.0,62075.0,0.065841]
[1728209193797,0.3632,62076.0,62075.0,0.067841]
[1728209198501,0.3636,62076.0,62075.0,0.067841]
[1728209200496,0.3636,62076.0,62075.0,0.0034]
[1728209202703,0.364,62076.0,62075.0,0.0034]
[1728209202912,0.42844,62076.0,62075.0,0.0034]
[1728209203909,0.42844,62076.0,62075.0,0.11258391]
[1728209206700,0.42844,62076.0,62075.0,0.1126729]
[1728209207393,0.42844,62076.0,62075.0,0.20911603]
[1728209211409,0.42844,62076.0,62075.0,0.20915894]
[1728209212306,0.06764,62076.0,62075.0,0.20915894]
[1728209212492,0.42844,62076.0,62075.0,0.11271581]
[1728209213807,0.42844,62076.0,62075.0,0.1127525]
[1728209216107,0.42844,62076.0,62075.0,0.11269129]
[1728209217711,0.42884,62076.0,62075.0,0.11269129]
[1728209218807,0.42884,62076.0,62075.0,0.0034]
[1728209220113,0.3644,62076.0,62075.0,0.0034]
[1728209226922,0.3644,62076.0,62075.0,0.20909315]
[1728209227421,0.3644,62076.0,62075.0,0.11265002]
[1728209228516,0.30797479,62076.0,62075.0,0.24286605]
[1728209229413,0.30797479,62076.0,62075.0,0.24196241]
[1728209229623,0.30837479,62076.0,62075.0,0.24196241]
[1728209230717,0.0008,62076.0,62075.0,0.24196241]
[1728209232526,0.0008,62076.0,62075.0,0.11223512]
[1728209233914,0.0008,62076.0,62075.0,0.0034]
[1728209241829,0.0008,62076.0,62075.0,0.11225553]
[1728209242233,0.0008,62076.0,62075.0,0.20892848]
[1728209243327,0.0008,62076.0,62075.0,0.11225553]
[1728209248924,0.0008,62076.0,62075.0,0.0034]
[1728209250125,0.0008,62076.0,62075.0,0.05175913]
[1728209251334,0.0008,62076.0,62075.0,0.0034]
[1728209251728,0.06524,62076.0,62075.0,0.0517596]
[1728209252438,0.06524,62076.0,62075.0,0.05175965]
[1728209253138,0.06524,62076.0,62075.0,0.0034]
[1728209256939,0.06524,62076.0,62075.0,0.11231648]
[1728209259146,0.06524,62076.0,62075.0,0.11231771]
[1728209262866,0.06524,62076.0,62075.0,0.11232118]
[1728209263362,0.06524,62076.0,62075.0,0.20904702]
[1728209263558,0.06524,62076.0,62075.0,0.11232118]
[1728209264060,0.06524,62076.0,62075.0,0.0034]
[1728209270474,0.06524,62076.0,62075.0,0.0517632]
[1728209271970,0.06524,62076.0,62075.0,0.24221289]
[1728209282462,0.06524,62076.0,62075.0,0.24219867]
[1728209287178,0.10090227,62076.0,62075.0,0.0034]
[1728209287370,0.06524,62076.0,62075.0,0.0034]
[1728209287568,0.10090241,62076.0,62075.0,0.0034]
[1728209294179,0.06524,62076.0,62075.0,0.242191]
[1728209302286,0.064441,62075.0,62073.0,0.11258669]
[1728209302593,0.12698961,62074.0,62073.0,0.11258669]
[1728209302795,0.12698961,62074.0,62073.0,0.17702969]
[1728209303692,0.12698961,62074.0,62073.0,0.17902969]
[1728209303920,0.12698961,62074.0,62073.0,0.18002969]
[1728209304082,0.12698961,62074.0,62073.0,0.21042969]
[1728209304286,0.12798961,62074.0,62073.0,0.20942969]
[1728209304484,0.12898961,62074.0,62073.0,0.21042969]
[1728209306087,0.12898961,62074.0,62073.0,0.24072969]
[1728209306794,0.12911972,62074.0,62073.0,0.24072969]
[1728209308394,0.12911972,62074.0,62073.0,0.60152969]
[1728209309298,0.0113,62080.0,62079.0,0.064437]
[1728209309502,0.43091414,62081.0,62079.0,0.17355424]
[1728209309803,0.42875413,62081.0,62080.0,0.10911724]
[1728209310293,0.42875413,62081.0,62080.0,0.17355324]
[1728209310899,0.36431913,62081.0,62080.0,0.17355324]
[1728209311198,0.36531913,62081.0,62080.0,0.17355324]